[Event "*** Titled Tuesday Blitz"]
[Site "Chess.com"]
[Date "2019.11.05"]
[Round "3"]
[White "Vuk2000"]
[Black "Indianlad"]
[Result "1/2-1/2"]
[WhiteElo "2797"]
[BlackElo "3022"]
[TimeControl "180+2"]
[EndTime "13:40:08 PST"]
[Termination "Game drawn by stalemate"]

1. d4 {[%clk 0:03:01.9]} 1... Nf6 {[%clk 0:03:00.6]} 2. Bg5 {[%clk 0:03:03]}
2... c5 {[%clk 0:02:55.9]} 3. Bxf6 {[%clk 0:03:03.1]} 3... gxf6 {[%clk 0:02:57]}
4. dxc5 {[%clk 0:03:04]} 4... Qa5+ {[%clk 0:02:52]} 5. c3 {[%clk 0:03:03.6]}
5... Qxc5 {[%clk 0:02:53]} 6. g3 {[%clk 0:03:02]} 6... Nc6 {[%clk 0:02:52.4]} 7.
Bg2 {[%clk 0:03:02.3]} 7... Bg7 {[%clk 0:02:51.2]} 8. Nd2 {[%clk 0:03:02.9]}
8... f5 {[%clk 0:02:51.7]} 9. Nh3 {[%clk 0:03:02.7]} 9... h5 {[%clk 0:02:49.9]}
10. Nf4 {[%clk 0:03:02.2]} 10... h4 {[%clk 0:02:50.7]} 11. Nd5 {[%clk 0:02:54]}
11... h3 {[%clk 0:02:48.4]} 12. Bf3 {[%clk 0:02:53.2]} 12... Ne5 {[%clk
0:02:48.1]} 13. Nb3 {[%clk 0:02:51.1]} 13... Qd6 {[%clk 0:02:44.9]} 14. Qd2
{[%clk 0:02:13.8]} 14... e6 {[%clk 0:02:38.7]} 15. Nf4 {[%clk 0:01:54.5]} 15...
Qxd2+ {[%clk 0:02:34.6]} 16. Nxd2 {[%clk 0:01:54]} 16... d5 {[%clk 0:02:33.9]}
17. O-O-O {[%clk 0:01:49.1]} 17... Bd7 {[%clk 0:02:35.1]} 18. Nd3 {[%clk
0:01:45.9]} 18... Ng4 {[%clk 0:02:27.2]} 19. Bxg4 {[%clk 0:01:36.4]} 19... fxg4
{[%clk 0:02:29.1]} 20. e4 {[%clk 0:01:36.2]} 20... dxe4 {[%clk 0:02:30.4]} 21.
Nxe4 {[%clk 0:01:36.6]} 21... Bc6 {[%clk 0:02:31.9]} 22. Rhe1 {[%clk 0:01:36.6]}
22... Rd8 {[%clk 0:02:23.8]} 23. Nb4 {[%clk 0:01:30.9]} 23... Rxd1+ {[%clk
0:02:13.4]} 24. Kxd1 {[%clk 0:01:32.8]} 24... Ba4+ {[%clk 0:02:14.8]} 25. b3
{[%clk 0:01:30.5]} 25... Bd7 {[%clk 0:02:15.3]} 26. Nd6+ {[%clk 0:01:12.8]}
26... Kf8 {[%clk 0:02:16.7]} 27. Kc2 {[%clk 0:00:55.8]} 27... b6 {[%clk
0:02:00.3]} 28. Nd3 {[%clk 0:00:54.6]} 28... Rh5 {[%clk 0:01:55.5]} 29. Re4
{[%clk 0:00:53.1]} 29... Rd5 {[%clk 0:01:51.1]} 30. Nc4 {[%clk 0:00:46.6]} 30...
e5 {[%clk 0:01:33.9]} 31. Ne3 {[%clk 0:00:44]} 31... Rd6 {[%clk 0:01:33.1]} 32.
Nxe5 {[%clk 0:00:36]} 32... Bxe5 {[%clk 0:01:04.2]} 33. Rxe5 {[%clk 0:00:37.1]}
33... Rf6 {[%clk 0:01:05.9]} 34. Rd5 {[%clk 0:00:30.2]} 34... Rxf2+ {[%clk
0:01:03.9]} 35. Rd2 {[%clk 0:00:31.3]} 35... Rf3 {[%clk 0:01:03.5]} 36. Kd3
{[%clk 0:00:32.1]} 36... Bc6 {[%clk 0:00:58.8]} 37. Ke2 {[%clk 0:00:31.5]} 37...
Rxg3 {[%clk 0:00:49.9]} 38. hxg3 {[%clk 0:00:22.1]} 38... h2 {[%clk 0:00:50.9]}
39. Rd1 {[%clk 0:00:23.7]} 39... Bf3+ {[%clk 0:00:51.9]} 40. Kf2 {[%clk
0:00:25.3]} 40... Bxd1 {[%clk 0:00:53.4]} 41. Kg2 {[%clk 0:00:26.7]} 41... Bf3+
{[%clk 0:00:53.9]} 42. Kxh2 {[%clk 0:00:28]} 42... Ke7 {[%clk 0:00:55.6]} 43.
Kg1 {[%clk 0:00:26.6]} 43... Ke6 {[%clk 0:00:57.1]} 44. Kf2 {[%clk 0:00:22.9]}
44... f5 {[%clk 0:00:37.6]} 45. Nc4 {[%clk 0:00:21.7]} 45... Bd5 {[%clk
0:00:36.7]} 46. Nd2 {[%clk 0:00:19.6]} 46... Ke5 {[%clk 0:00:38.2]} 47. Ke3
{[%clk 0:00:20.8]} 47... b5 {[%clk 0:00:39.7]} 48. Nf1 {[%clk 0:00:14.3]} 48...
a5 {[%clk 0:00:37]} 49. Nd2 {[%clk 0:00:15.5]} 49... Be6 {[%clk 0:00:38.1]} 50.
a4 {[%clk 0:00:08.7]} 50... Bxb3 {[%clk 0:00:15.5]} 51. Nxb3 {[%clk 0:00:09.4]}
51... bxa4 {[%clk 0:00:17.4]} 52. Nxa5 {[%clk 0:00:09.7]} 52... Kd5 {[%clk
0:00:18]} 53. Kf4 {[%clk 0:00:11]} 53... a3 {[%clk 0:00:19]} 54. Kxf5 {[%clk
0:00:07.5]} 54... a2 {[%clk 0:00:20.1]} 55. Nb3 {[%clk 0:00:07.5]} 55... Kc4
{[%clk 0:00:21.6]} 56. Na1 {[%clk 0:00:08.5]} 56... Kxc3 {[%clk 0:00:13.4]} 57.
Ke4 {[%clk 0:00:09.4]} 57... Kd2 {[%clk 0:00:14.1]} 58. Kf4 {[%clk 0:00:09.2]}
58... Kc1 {[%clk 0:00:11]} 59. Ke3 {[%clk 0:00:10.1]} 59... Kb2 {[%clk
0:00:11.1]} 60. Kd2 {[%clk 0:00:10.8]} 60... Kxa1 {[%clk 0:00:12.8]} 61. Kc2
{[%clk 0:00:12]} 1/2-1/2

[Event "*** Titled Tuesday Blitz"]
[Site "Chess.com"]
[Date "2019.11.05"]
[Round "3"]
[White "SantoBlue"]
[Black "Squirlolz"]
[Result "1/2-1/2"]
[WhiteElo "2863"]
[BlackElo "2530"]
[TimeControl "180+2"]
[EndTime "13:40:11 PST"]
[Termination "Game drawn by repetition"]

1. e4 {[%clk 0:03:01.6]} 1... c6 {[%clk 0:02:57.7]} 2. d4 {[%clk 0:03:00.4]}
2... d5 {[%clk 0:02:59.6]} 3. exd5 {[%clk 0:03:02.3]} 3... cxd5 {[%clk
0:03:00.7]} 4. Bd3 {[%clk 0:03:03.7]} 4... Nc6 {[%clk 0:03:01.5]} 5. c3 {[%clk
0:03:04.8]} 5... Qc7 {[%clk 0:03:03]} 6. h3 {[%clk 0:03:00.1]} 6... e6 {[%clk
0:02:59.3]} 7. Nf3 {[%clk 0:03:01.2]} 7... Bd6 {[%clk 0:03:00.3]} 8. O-O {[%clk
0:03:02.8]} 8... Nge7 {[%clk 0:03:01.7]} 9. Re1 {[%clk 0:03:02.6]} 9... O-O
{[%clk 0:02:50.6]} 10. Nbd2 {[%clk 0:03:03.2]} 10... Ng6 {[%clk 0:02:44.8]} 11.
Nf1 {[%clk 0:03:03.9]} 11... Bd7 {[%clk 0:02:44]} 12. Ng5 {[%clk 0:03:01]} 12...
h6 {[%clk 0:02:30]} 13. Bxg6 {[%clk 0:02:46.1]} 13... fxg6 {[%clk 0:02:26]} 14.
Nxe6 {[%clk 0:02:46.6]} 14... Bxe6 {[%clk 0:02:20.5]} 15. Rxe6 {[%clk
0:02:48.5]} 15... Rxf2 {[%clk 0:02:13.8]} 16. Kxf2 {[%clk 0:02:35.7]} 16... Qf7+
{[%clk 0:02:13]} 17. Kg1 {[%clk 0:02:37.1]} 17... Qxe6 {[%clk 0:02:14.6]} 18.
Bd2 {[%clk 0:02:35.6]} 18... Rf8 {[%clk 0:02:08.8]} 19. Qb3 {[%clk 0:02:35.4]}
19... Qf7 {[%clk 0:02:02.4]} 20. Be3 {[%clk 0:02:27.2]} 20... Na5 {[%clk
0:02:03.2]} 21. Qc2 {[%clk 0:02:25.1]} 21... Nc4 {[%clk 0:02:04.3]} 22. Bf2
{[%clk 0:02:16.1]} 22... Qf5 {[%clk 0:01:55.8]} 23. Qxf5 {[%clk 0:02:13.1]}
23... gxf5 {[%clk 0:01:55]} 24. b3 {[%clk 0:02:12.4]} 24... Nb6 {[%clk 0:01:46]}
25. Nd2 {[%clk 0:02:13.5]} 25... Rc8 {[%clk 0:01:44.8]} 26. Rc1 {[%clk
0:02:07.7]} 26... Bf4 {[%clk 0:01:43.8]} 27. Be1 {[%clk 0:02:08.4]} 27... Be3+
{[%clk 0:01:36.2]} 28. Kf1 {[%clk 0:02:09.4]} 28... Bxd4 {[%clk 0:01:37.7]} 29.
Nf3 {[%clk 0:02:10.9]} 29... Bf6 {[%clk 0:01:36.3]} 30. Ke2 {[%clk 0:02:09.6]}
30... d4 {[%clk 0:01:33.7]} 31. c4 {[%clk 0:02:09.1]} 31... Nd5 {[%clk
0:01:34.9]} 32. Bd2 {[%clk 0:02:01.9]} 32... Nc3+ {[%clk 0:01:27.8]} 33. Kd3
{[%clk 0:02:01.1]} 33... Rd8 {[%clk 0:00:59.2]} 34. b4 {[%clk 0:01:54.4]} 34...
a6 {[%clk 0:00:56.8]} 35. a3 {[%clk 0:01:54.2]} 35... Kf7 {[%clk 0:00:56.2]} 36.
Rf1 {[%clk 0:01:49.6]} 36... g5 {[%clk 0:00:52.5]} 37. g4 {[%clk 0:01:50]} 37...
f4 {[%clk 0:00:51]} 38. Re1 {[%clk 0:01:51.3]} 38... Rd7 {[%clk 0:00:37.7]} 39.
h4 {[%clk 0:01:48.1]} 39... Na4 {[%clk 0:00:28]} 40. Bc1 {[%clk 0:01:39.9]}
40... gxh4 {[%clk 0:00:18.3]} 41. Rh1 {[%clk 0:01:40.5]} 41... Kg6 {[%clk
0:00:14.1]} 42. Bxf4 {[%clk 0:01:30.7]} 42... Nb2+ {[%clk 0:00:14.1]} 43. Ke4
{[%clk 0:01:32]} 43... Nxc4 {[%clk 0:00:16]} 44. Nxh4+ {[%clk 0:01:33.7]} 44...
Bxh4 {[%clk 0:00:14.4]} 45. Rxh4 {[%clk 0:01:35.6]} 45... d3 {[%clk 0:00:15.5]}
46. Rxh6+ {[%clk 0:01:36.6]} 46... Kg7 {[%clk 0:00:17.1]} 47. Rh1 {[%clk
0:01:38.5]} 47... d2 {[%clk 0:00:15.2]} 48. Rd1 {[%clk 0:01:40]} 48... Re7+
{[%clk 0:00:16.4]} 49. Kd4 {[%clk 0:01:39.1]} 49... Re1 {[%clk 0:00:16.2]} 50.
Rxd2 {[%clk 0:01:29.3]} 50... Nxd2 {[%clk 0:00:17.5]} 51. Bxd2 {[%clk
0:01:31.2]} 51... Ra1 {[%clk 0:00:14]} 52. Kc5 {[%clk 0:01:30.1]} 52... Rxa3
{[%clk 0:00:14.1]} 53. Kb6 {[%clk 0:01:32]} 53... Rb3 {[%clk 0:00:11.1]} 54.
Kxb7 {[%clk 0:01:24.7]} 54... a5 {[%clk 0:00:12]} 55. Kc6 {[%clk 0:01:26.6]}
55... a4 {[%clk 0:00:07.3]} 56. b5 {[%clk 0:01:28.2]} 56... a3 {[%clk
0:00:08.3]} 57. Bf4 {[%clk 0:01:29.9]} 57... a2 {[%clk 0:00:06.2]} 58. Be5+
{[%clk 0:01:31]} 58... Kf7 {[%clk 0:00:07.3]} 59. b6 {[%clk 0:01:32.4]} 59...
Ke6 {[%clk 0:00:07.4]} 60. Bh8 {[%clk 0:01:32.8]} 60... Rh3 {[%clk 0:00:04.9]}
61. Bg7 {[%clk 0:01:30.5]} 61... Rh7 {[%clk 0:00:04.8]} 62. Bd4 {[%clk
0:01:26.2]} 62... Rd7 {[%clk 0:00:04.6]} 63. Bh8 {[%clk 0:01:13]} 63... Rd8
{[%clk 0:00:03.9]} 64. Bg7 {[%clk 0:01:12.4]} 64... Rc8+ {[%clk 0:00:03]} 65.
Kb5 {[%clk 0:01:12.6]} 65... Rc1 {[%clk 0:00:04]} 66. b7 {[%clk 0:01:05.4]}
66... a1=Q {[%clk 0:00:05.1]} 67. Bxa1 {[%clk 0:01:05.4]} 67... Rxa1 {[%clk
0:00:07]} 68. Kc6 {[%clk 0:01:01.7]} 68... Rc1+ {[%clk 0:00:07.3]} 69. Kb6
{[%clk 0:01:03.2]} 69... Rb1+ {[%clk 0:00:06]} 70. Kc7 {[%clk 0:01:01.7]} 70...
Rc1+ {[%clk 0:00:07.4]} 71. Kd8 {[%clk 0:01:02.3]} 71... Rb1 {[%clk 0:00:08.5]}
72. Kc8 {[%clk 0:01:03]} 72... Rc1+ {[%clk 0:00:09.9]} 73. Kd8 {[%clk
0:01:03.8]} 73... Rb1 {[%clk 0:00:11.3]} 74. Kc7 {[%clk 0:01:04.5]} 74... Rc1+
{[%clk 0:00:12.2]} 75. Kd8 {[%clk 0:01:05.4]} 1/2-1/2

[Event "*** Titled Tuesday Blitz"]
[Site "Chess.com"]
[Date "2019.11.05"]
[Round "3"]
[White "Bryakin_Mikhail"]
[Black "NZT72"]
[Result "1/2-1/2"]
[WhiteElo "2711"]
[BlackElo "2489"]
[TimeControl "180+2"]
[EndTime "13:40:26 PST"]
[Termination "Game drawn by repetition"]

1. d4 {[%clk 0:02:59.1]} 1... Nf6 {[%clk 0:03:00.5]} 2. c4 {[%clk 0:03:00.4]}
2... e6 {[%clk 0:03:01.7]} 3. g3 {[%clk 0:03:01.5]} 3... d5 {[%clk 0:02:59.9]}
4. Bg2 {[%clk 0:03:02.5]} 4... Be7 {[%clk 0:02:55.3]} 5. Nf3 {[%clk 0:03:03.7]}
5... O-O {[%clk 0:02:54.1]} 6. O-O {[%clk 0:03:05.2]} 6... dxc4 {[%clk
0:02:54.7]} 7. Qc2 {[%clk 0:03:06.1]} 7... b6 {[%clk 0:02:34.4]} 8. Ne5 {[%clk
0:03:06.4]} 8... Qxd4 {[%clk 0:02:16.9]} 9. Bxa8 {[%clk 0:03:01.5]} 9... Qxe5
{[%clk 0:02:17.5]} 10. Bf3 {[%clk 0:02:57.5]} 10... Ba6 {[%clk 0:01:25]} 11. Bf4
{[%clk 0:02:54.3]} 11... Qc5 {[%clk 0:01:23]} 12. Nc3 {[%clk 0:02:45.3]} 12...
Nd5 {[%clk 0:01:08.3]} 13. Nxd5 {[%clk 0:02:40.4]} 13... exd5 {[%clk 0:01:06.6]}
14. Rfd1 {[%clk 0:02:41.5]} 14... c6 {[%clk 0:01:03.5]} 15. Rac1 {[%clk
0:02:19.5]} 15... Nd7 {[%clk 0:00:50.2]} 16. Bg2 {[%clk 0:01:45.8]} 16... Bf6
{[%clk 0:00:23]} 17. Qa4 {[%clk 0:01:46.2]} 17... Qb5 {[%clk 0:00:21.4]} 18.
Qxb5 {[%clk 0:01:45.4]} 18... Bxb5 {[%clk 0:00:22.6]} 19. Rb1 {[%clk 0:01:46.5]}
19... Nc5 {[%clk 0:00:22.8]} 20. Bd6 {[%clk 0:01:35.1]} 20... Re8 {[%clk
0:00:23.4]} 21. Bxc5 {[%clk 0:01:35.1]} 21... bxc5 {[%clk 0:00:24.2]} 22. e4
{[%clk 0:01:36.6]} 22... d4 {[%clk 0:00:21.7]} 23. f4 {[%clk 0:01:38]} 23... Bd8
{[%clk 0:00:15.1]} 24. e5 {[%clk 0:01:37.7]} 24... Bb6 {[%clk 0:00:15.7]} 25.
Rdc1 {[%clk 0:01:35.2]} 25... d3 {[%clk 0:00:13.8]} 26. Kf2 {[%clk 0:01:30.1]}
26... c3 {[%clk 0:00:08.9]} 27. bxc3 {[%clk 0:01:27.2]} 27... c4+ {[%clk
0:00:10.1]} 28. Kf3 {[%clk 0:01:28.5]} 28... g6 {[%clk 0:00:09.8]} 29. Rd1
{[%clk 0:01:19.3]} 29... h5 {[%clk 0:00:09.6]} 30. Ke4 {[%clk 0:01:17.6]} 30...
f5+ {[%clk 0:00:06.3]} 31. Kf3 {[%clk 0:01:17.4]} 31... Ba4 {[%clk 0:00:07.4]}
32. Rd2 {[%clk 0:01:17.8]} 32... Kf7 {[%clk 0:00:07.1]} 33. Rb4 {[%clk
0:01:18.3]} 33... Bb5 {[%clk 0:00:07.5]} 34. a4 {[%clk 0:01:19.5]} 34... Ba6
{[%clk 0:00:08.8]} 35. Rb1 {[%clk 0:01:10.2]} 35... Ba5 {[%clk 0:00:09.7]} 36.
Rc1 {[%clk 0:01:11.7]} 36... Bb7 {[%clk 0:00:08.9]} 37. Kf2 {[%clk 0:01:10.1]}
37... Ba6 {[%clk 0:00:09.7]} 38. Bxc6 {[%clk 0:01:10.6]} 38... Rb8 {[%clk
0:00:09.8]} 39. Bb5 {[%clk 0:01:10.7]} 39... Bb6+ {[%clk 0:00:10.6]} 40. Ke1
{[%clk 0:01:08]} 40... Bxb5 {[%clk 0:00:11.7]} 41. axb5 {[%clk 0:01:08.8]} 41...
Be3 {[%clk 0:00:12.8]} 42. Rb1 {[%clk 0:01:10.2]} 42... Bxd2+ {[%clk 0:00:13.6]}
43. Kxd2 {[%clk 0:01:12.1]} 43... Ke6 {[%clk 0:00:14.5]} 44. Ke3 {[%clk
0:00:41.4]} 44... Kd5 {[%clk 0:00:15]} 45. Ra1 {[%clk 0:00:42.7]} 45... Rxb5
{[%clk 0:00:15.3]} 46. Rxa7 {[%clk 0:00:42.8]} 46... Rb2 {[%clk 0:00:16.4]} 47.
Ra5+ {[%clk 0:00:41.9]} 47... Ke6 {[%clk 0:00:17.1]} 48. Kd4 {[%clk 0:00:41.8]}
48... Rxh2 {[%clk 0:00:14.6]} 49. Kxc4 {[%clk 0:00:39.2]} 49... d2 {[%clk
0:00:15.3]} 50. Rd5 {[%clk 0:00:39.2]} 50... Rg2 {[%clk 0:00:13.2]} 51. Rd6+
{[%clk 0:00:39]} 51... Ke7 {[%clk 0:00:13.6]} 52. Rd3 {[%clk 0:00:40]} 52... Ke6
{[%clk 0:00:12.6]} 53. Rd6+ {[%clk 0:00:40.8]} 53... Ke7 {[%clk 0:00:13.8]} 54.
Rd3 {[%clk 0:00:42.2]} 54... Ke6 {[%clk 0:00:15.2]} 55. Kd4 {[%clk 0:00:43.5]}
55... Rxg3 {[%clk 0:00:10.1]} 56. Rxd2 {[%clk 0:00:44.7]} 56... Rf3 {[%clk
0:00:11.3]} 57. Kc5 {[%clk 0:00:45]} 57... Rxf4 {[%clk 0:00:12.3]} 58. Rd6+
{[%clk 0:00:46.3]} 58... Kxe5 {[%clk 0:00:13.4]} 59. Rxg6 {[%clk 0:00:47.9]}
59... h4 {[%clk 0:00:13.3]} 60. Rh6 {[%clk 0:00:49.1]} 60... Re4 {[%clk
0:00:11]} 61. Kb5 {[%clk 0:00:48.6]} 61... Kd5 {[%clk 0:00:10.2]} 62. Rh5 {[%clk
0:00:47.7]} 62... Ke6 {[%clk 0:00:10.4]} 63. c4 {[%clk 0:00:47.9]} 63... Kf6
{[%clk 0:00:11]} 64. c5 {[%clk 0:00:48.9]} 64... Kg6 {[%clk 0:00:12.4]} 65. Rh8
{[%clk 0:00:50.1]} 65... Kg7 {[%clk 0:00:13.7]} 66. Rh5 {[%clk 0:00:51.6]} 66...
Kg6 {[%clk 0:00:15]} 67. Rh8 {[%clk 0:00:52.9]} 67... Kg7 {[%clk 0:00:16.3]} 68.
Rh5 {[%clk 0:00:54.1]} 68... Kg6 {[%clk 0:00:17.6]} 1/2-1/2

[Event "*** Titled Tuesday Blitz"]
[Site "Chess.com"]
[Date "2019.11.05"]
[Round "3"]
[White "gorgeous1083"]
[Black "GrandGlacier"]
[Result "0-1"]
[WhiteElo "1976"]
[BlackElo "2525"]
[TimeControl "180+2"]
[EndTime "13:40:32 PST"]
[Termination "GrandGlacier won on time"]

1. e4 {[%clk 0:03:01.9]} 1... e5 {[%clk 0:02:58.6]} 2. Nf3 {[%clk 0:03:02.6]}
2... Nc6 {[%clk 0:02:59.7]} 3. Bc4 {[%clk 0:03:01.8]} 3... Bc5 {[%clk
0:02:59.4]} 4. b4 {[%clk 0:03:02.9]} 4... Bxb4 {[%clk 0:03:00.3]} 5. c3 {[%clk
0:03:04]} 5... Bd6 {[%clk 0:03:01]} 6. d4 {[%clk 0:03:02.3]} 6... Nf6 {[%clk
0:03:01.4]} 7. O-O {[%clk 0:03:02.1]} 7... O-O {[%clk 0:03:01.4]} 8. Re1 {[%clk
0:03:02.2]} 8... h6 {[%clk 0:03:01.2]} 9. Nbd2 {[%clk 0:02:54.6]} 9... b6 {[%clk
0:03:01.1]} 10. Bb5 {[%clk 0:02:53.5]} 10... Qe7 {[%clk 0:02:55.9]} 11. d5
{[%clk 0:02:26.8]} 11... Na5 {[%clk 0:02:48.3]} 12. a4 {[%clk 0:02:05.5]} 12...
c6 {[%clk 0:02:47]} 13. Bd3 {[%clk 0:01:57]} 13... Bb7 {[%clk 0:02:35]} 14. c4
{[%clk 0:01:55.3]} 14... Ba6 {[%clk 0:02:26]} 15. Bb2 {[%clk 0:01:52.1]} 15...
Nb7 {[%clk 0:02:19.5]} 16. Nb3 {[%clk 0:01:40.4]} 16... Bb4 {[%clk 0:01:58.2]}
17. Re2 {[%clk 0:01:27.2]} 17... cxd5 {[%clk 0:01:53.5]} 18. exd5 {[%clk
0:01:16.3]} 18... d6 {[%clk 0:01:50.1]} 19. Nbd4 {[%clk 0:01:09.5]} 19... Qc7
{[%clk 0:01:32.8]} 20. Nc6 {[%clk 0:01:06.7]} 20... Bc5 {[%clk 0:01:28.2]} 21.
Nfxe5 {[%clk 0:00:59.9]} 21... dxe5 {[%clk 0:01:23.2]} 22. Bxe5 {[%clk
0:01:01.1]} 22... Bd6 {[%clk 0:01:02]} 23. Bxf6 {[%clk 0:00:54.2]} 23... Bxh2+
{[%clk 0:00:50.1]} 24. Kh1 {[%clk 0:00:52.1]} 24... gxf6 {[%clk 0:00:49.3]} 25.
g3 {[%clk 0:00:48.2]} 25... Nd6 {[%clk 0:00:40.1]} 26. Kxh2 {[%clk 0:00:43.7]}
26... Bxc4 {[%clk 0:00:40.8]} 27. Bxc4 {[%clk 0:00:24.3]} 27... Nxc4 {[%clk
0:00:41.4]} 28. Qd4 {[%clk 0:00:23.6]} 28... Ne5 {[%clk 0:00:38.2]} 29. Nxe5
{[%clk 0:00:21.4]} 29... fxe5 {[%clk 0:00:39.3]} 30. Rxe5 {[%clk 0:00:21.1]}
30... Rfe8 {[%clk 0:00:39.3]} 31. Qg4+ {[%clk 0:00:20.3]} 31... Kh7 {[%clk
0:00:37.8]} 32. Qe4+ {[%clk 0:00:15.9]} 32... f5 {[%clk 0:00:37.2]} 33. Qxf5+
{[%clk 0:00:15.1]} 33... Kg7 {[%clk 0:00:38.1]} 34. Rae1 {[%clk 0:00:12.2]}
34... Rxe5 {[%clk 0:00:38.3]} 35. Rxe5 {[%clk 0:00:10.1]} 35... Rf8 {[%clk
0:00:38.5]} 36. Qe4 {[%clk 0:00:11.3]} 36... Rxf2+ {[%clk 0:00:37.7]} 37. Kg1
{[%clk 0:00:08.9]} 37... Rf7 {[%clk 0:00:37.1]} 38. Qe1 {[%clk 0:00:02.3]} 38...
Qc5+ {[%clk 0:00:37.1]} 39. Kh2 {[%clk 0:00:02.9]} 39... Qc2+ {[%clk 0:00:37.8]}
40. Re2 {[%clk 0:00:02.9]} 40... Qxa4 {[%clk 0:00:38.6]} 41. d6 {[%clk
0:00:03.4]} 41... Qd4 {[%clk 0:00:38]} 42. Qd2 {[%clk 0:00:02.6]} 42... Qxd2
{[%clk 0:00:36.9]} 43. Rxd2 {[%clk 0:00:04.5]} 43... Rd7 {[%clk 0:00:37.8]} 44.
Kh3 {[%clk 0:00:03.3]} 44... Kf6 {[%clk 0:00:39.3]} 45. Kh4 {[%clk 0:00:04.7]}
45... b5 {[%clk 0:00:35]} 46. Kh5 {[%clk 0:00:05.1]} 46... Kg7 {[%clk
0:00:29.7]} 47. Rd4 {[%clk 0:00:05.2]} 47... a6 {[%clk 0:00:28.2]} 48. Rg4+
{[%clk 0:00:05.5]} 48... Kf7 {[%clk 0:00:25.1]} 49. Rd4 {[%clk 0:00:05.6]} 49...
Ke6 {[%clk 0:00:21.6]} 50. Kxh6 {[%clk 0:00:04.7]} 50... a5 {[%clk 0:00:22.1]}
51. g4 {[%clk 0:00:03.3]} 51... b4 {[%clk 0:00:23.4]} 52. g5 {[%clk 0:00:04]}
52... b3 {[%clk 0:00:24.7]} 53. Rd3 {[%clk 0:00:02.5]} 53... a4 {[%clk
0:00:25.3]} 54. g6 {[%clk 0:00:04]} 54... b2 {[%clk 0:00:25.5]} 55. Rd1 {[%clk
0:00:04.1]} 55... a3 {[%clk 0:00:26]} 56. g7 {[%clk 0:00:02.9]} 56... Rxg7
{[%clk 0:00:26.3]} 57. Kxg7 {[%clk 0:00:04.3]} 57... a2 {[%clk 0:00:27.4]} 58.
d7 {[%clk 0:00:05.6]} 58... a1=Q {[%clk 0:00:27.9]} 59. d8=Q {[%clk 0:00:06.8]}
59... b1=Q+ {[%clk 0:00:27.6]} 60. Kg8 {[%clk 0:00:05.1]} 60... Qxd1 {[%clk
0:00:27.8]} 61. Qe8+ {[%clk 0:00:04.8]} 61... Kf5 {[%clk 0:00:26.1]} 62. Qf7+
{[%clk 0:00:05.3]} 62... Kg4 {[%clk 0:00:26.7]} 63. Qg6+ {[%clk 0:00:03.2]}
63... Kf4 {[%clk 0:00:27.3]} 64. Qh6+ {[%clk 0:00:02.2]} 64... Ke4 {[%clk
0:00:28.4]} 65. Qh4+ {[%clk 0:00:02.7]} 65... Ke3 {[%clk 0:00:27.7]} 66. Qg5+
{[%clk 0:00:02.1]} 66... Kf2 {[%clk 0:00:26.5]} 67. Qh4+ {[%clk 0:00:02.2]}
67... Kg2 {[%clk 0:00:27]} 0-1